bitfinex-derivatives/quotes_BTCF0:USTF0_20250809
["timestamp","ask_amount","ask_price","bid_price","bid_amount"]
[1754762424043,0.45773209,116770.0,116760.0,0.53782167]
[1754762424343,0.45773209,116770.0,116760.0,0.89862167]
[1754762424848,0.45773209,116770.0,116760.0,0.5659402]
[1754762425248,0.45773209,116770.0,116760.0,0.89862167]
[1754762427246,0.45773209,116770.0,116760.0,1.0528353]
[1754762428447,0.12505062,116770.0,116760.0,1.0528353]
[1754762428748,0.45773209,116770.0,116760.0,1.0528353]
[1754762428942,0.45773209,116770.0,116760.0,0.72015383]
[1754762429141,0.45773209,116770.0,116760.0,1.0528353]
[1754762431051,0.45773209,116770.0,116760.0,0.6920353]
[1754762431244,0.45773209,116770.0,116760.0,1.0528353]
[1754762432846,0.45773209,116770.0,116760.0,0.89862167]
[1754762434148,0.45773209,116770.0,116760.0,1.05284666]
[1754762434442,0.45773209,116770.0,116760.0,0.69204666]
[1754762434647,0.45773209,116770.0,116760.0,1.05284666]
[1754762434847,0.45773209,116770.0,116760.0,0.72016519]
[1754762435048,0.45773209,116770.0,116760.0,1.05284666]
[1754762435444,0.45773209,116770.0,116760.0,0.72016519]
[1754762436044,0.45773209,116770.0,116760.0,1.05284666]
[1754762438154,0.45773209,116770.0,116760.0,0.69204666]
[1754762438345,0.45773209,116770.0,116760.0,1.05284666]
[1754762440252,0.12505062,116770.0,116760.0,1.05284666]
[1754762440451,0.45773209,116770.0,116760.0,0.72016519]
[1754762440752,0.45773209,116770.0,116760.0,0.69204666]
[1754762441051,0.45773209,116770.0,116760.0,1.05284666]
[1754762445856,0.45773209,116770.0,116760.0,0.35936509]
[1754762445857,0.81853209,116770.0,116760.0,0.35936509]
[1754762446362,0.82389209,116770.0,116760.0,0.2051401]
[1754762446657,0.82389209,116770.0,116760.0,0.31309454]
[1754762447250,0.81853209,116770.0,116760.0,0.17917444]
[1754762447461,0.82389209,116770.0,116760.0,0.31248494]
[1754762449067,0.46309209,116770.0,116760.0,0.31248494]
[1754762449255,0.82389209,116770.0,116760.0,0.31248494]
[1754762454264,0.82389209,116770.0,116760.0,0.2045305]
[1754762454866,0.81853209,116770.0,116760.0,0.2045305]
[1754762460283,0.82389209,116770.0,116760.0,0.2045305]
[1754762461189,0.46309209,116770.0,116760.0,0.2045305]
[1754762461378,0.82389209,116770.0,116760.0,0.2045305]
[1754762463382,0.49121062,116770.0,116760.0,0.2045305]
[1754762463580,0.82389209,116770.0,116760.0,0.2045305]
[1754762464091,0.82389209,116770.0,116760.0,0.31248494]
[1754762465890,0.49121062,116770.0,116760.0,0.31248494]
[1754762466388,0.82389209,116770.0,116760.0,0.31248494]
[1754762469192,0.82389209,116770.0,116760.0,0.22685444]
[1754762473689,0.82389209,116770.0,116760.0,0.1189]
[1754762474193,0.82389209,116770.0,116760.0,0.22680007]
[1754762474696,1.15657356,116770.0,116760.0,0.22682036]
[1754762476693,0.82389209,116770.0,116760.0,0.22682036]
[1754762482197,0.82389209,116770.0,116760.0,0.1189]
[1754762484106,1.15657356,116770.0,116760.0,0.1189]
[1754762485605,1.15657356,116770.0,116760.0,0.02427]
[1754762485997,1.15657356,116770.0,116750.0,0.10792036]
[1754762485998,0.0856302,116760.0,116750.0,0.10792036]
[1754762486201,2.10230354,116760.0,116750.0,0.13119036]
[1754762486601,2.10230354,116760.0,116750.0,0.15736036]
[1754762486801,2.10230354,116760.0,116750.0,0.22861036]
[1754762487408,2.10430354,116760.0,116750.0,0.22861036]
[1754762487606,2.10630354,116760.0,116750.0,0.22861036]
[1754762489704,1.4409406,116760.0,116750.0,0.22861036]
[1754762489906,1.77362207,116760.0,116750.0,0.22861036]
[1754762490110,2.10630354,116760.0,116750.0,0.22861036]
[1754762492014,2.10630354,116760.0,116750.0,0.12069]
[1754762492210,1.4409406,116760.0,116750.0,0.12069]
[1754762492405,2.10630354,116760.0,116750.0,0.12069]
[1754762498015,1.74550354,116760.0,116750.0,0.12069]
[1754762498218,2.10630354,116760.0,116750.0,0.12069]
[1754762502612,2.10630354,116760.0,116750.0,0.22859349]
[1754762502821,2.10630354,116760.0,116750.0,0.56127496]
[1754762503511,1.4409406,116760.0,116750.0,0.56127496]
[1754762503716,2.10630354,116760.0,116750.0,0.56127496]
[1754762504422,2.10630354,116760.0,116750.0,0.2063275]
[1754762504613,2.10630354,116760.0,116750.0,0.53900897]
[1754762505111,2.10630354,116760.0,116750.0,0.2063275]
[1754762505423,1.4409406,116760.0,116750.0,0.53900897]
[1754762505720,2.10630354,116760.0,116750.0,0.53900897]
[1754762506023,1.4409406,116760.0,116750.0,0.53900897]
[1754762506221,2.10630354,116760.0,116750.0,0.53900897]
[1754762506716,2.10630354,116760.0,116750.0,0.2063275]
[1754762506925,2.10630354,116760.0,116750.0,0.53900897]
[1754762507113,1.4355806,116760.0,116750.0,0.48943897]
[1754762507415,1.4355806,116760.0,116750.0,0.53676897]
[1754762507820,1.76826207,116760.0,116750.0,0.64467246]
[1754762508518,1.40746207,116760.0,116750.0,0.64467246]
[1754762509123,1.0747806,116760.0,116750.0,0.64467246]
[1754762510021,1.40746207,116760.0,116750.0,0.64467246]
[1754762510723,1.76826207,116760.0,116750.0,0.64467246]
[1754762510921,1.40746207,116760.0,116750.0,0.64467246]
[1754762511112,1.76826207,116760.0,116750.0,0.64467246]
[1754762511422,1.40746207,116760.0,116750.0,0.64467246]
[1754762511825,1.76826207,116760.0,116750.0,0.64467246]
[1754762512524,1.40746207,116760.0,116750.0,0.64467246]
[1754762513728,1.40746207,116760.0,116750.0,0.53676897]
[1754762514720,1.40746207,116760.0,116750.0,0.2040875]
[1754762514927,1.40746207,116760.0,116750.0,0.69099396]
[1754762515625,1.40746207,116760.0,116750.0,0.35831249]
[1754762515826,1.4355806,116760.0,116750.0,0.69099396]
[1754762516025,1.40746207,116760.0,116750.0,0.69099396]
[1754762518231,1.40746207,116760.0,116750.0,0.35831249]
[1754762518425,1.40746207,116760.0,116750.0,0.69099396]
[1754762518622,1.76826207,116760.0,116750.0,0.69099396]
[1754762518928,1.40746207,116760.0,116750.0,0.69099396]
[1754762519528,1.40746207,116760.0,116750.0,0.64470349]
[1754762520427,1.0747806,116760.0,116750.0,0.64470349]
[1754762520631,1.40746207,116760.0,116750.0,0.64470349]
[1754762522130,1.0747806,116760.0,116750.0,0.64470349]
[1754762522322,1.40746207,116760.0,116750.0,0.64470349]
[1754762522528,1.40746207,116760.0,116750.0,0.53676897]
[1754762523131,1.0747806,116760.0,116750.0,0.53676897]
[1754762523327,1.40746207,116760.0,116750.0,0.53676897]
[1754762524327,1.0747806,116760.0,116750.0,0.53676897]
[1754762524538,1.40746207,116760.0,116750.0,0.53676897]
[1754762525935,1.40746207,116760.0,116750.0,0.64470349]
[1754762526140,1.0747806,116760.0,116750.0,0.64470349]
[1754762526333,1.40746207,116760.0,116750.0,0.64470349]
[1754762529738,1.40746207,116760.0,116750.0,0.31202202]
[1754762529940,1.40746207,116760.0,116750.0,0.64470349]
[1754762530135,1.40746207,116760.0,116750.0,0.53676897]
[1754762532735,1.41282207,116760.0,116750.0,0.53676897]
[1754762533643,1.0801406,116760.0,116750.0,0.53676897]
[1754762533842,1.41282207,116760.0,116750.0,0.2040875]
[1754762534049,1.41282207,116760.0,116750.0,0.53676897]
[1754762534244,1.41282207,116760.0,116750.0,0.69099396]
[1754762534735,1.41282207,116760.0,116750.0,0.35831249]
[1754762534935,1.41282207,116760.0,116750.0,0.69099396]
[1754762536748,1.0801406,116760.0,116750.0,0.69099396]
[1754762537042,1.41282207,116760.0,116750.0,0.69099396]
[1754762537344,1.0801406,116760.0,116750.0,0.69099396]
[1754762537737,1.41282207,116760.0,116750.0,0.69099396]
[1754762540149,1.41282207,116760.0,116750.0,0.35831249]
[1754762540447,1.41282207,116760.0,116750.0,0.69099396]
[1754762542644,1.0801406,116760.0,116750.0,0.69099396]
[1754762542849,1.40746207,116760.0,116750.0,0.69099396]
[1754762544140,1.42633085,116760.0,116750.0,0.69099396]
[1754762544541,1.43169085,116760.0,116750.0,0.35831249]
[1754762544748,1.43169085,116760.0,116750.0,0.53676897]
[1754762545348,1.45980938,116760.0,116750.0,0.53676897]
[1754762545548,1.79249085,116760.0,116750.0,0.53676897]
[1754762546051,1.79249085,116760.0,116750.0,0.64474354]
[1754762549652,1.45980938,116760.0,116750.0,0.64474354]
[1754762549953,1.79249085,116760.0,116750.0,0.64474354]
[1754762551546,1.45980938,116760.0,116750.0,0.64474354]
[1754762551751,1.79249085,116760.0,116750.0,0.64474354]
[1754762552051,1.45980938,116760.0,116750.0,0.64474354]
[1754762552254,1.79249085,116760.0,116750.0,0.64474354]
[1754762554649,1.79249085,116760.0,116750.0,0.53676897]
[1754762555855,1.43169085,116760.0,116750.0,0.53676897]
[1754762556153,1.79249085,116760.0,116750.0,0.53676897]
[1754762557554,1.79249085,116760.0,116750.0,0.69099396]
[1754762557950,1.43169085,116760.0,116750.0,0.69099396]
[1754762558753,1.43169085,116760.0,116750.0,0.35831249]
[1754762558955,1.43169085,116760.0,116750.0,0.69099396]
[1754762559355,1.09900938,116760.0,116750.0,0.69099396]
[1754762561260,1.45980938,116760.0,116750.0,0.69099396]
[1754762561456,1.79249085,116760.0,116750.0,0.69099396]
[1754762562053,1.45980938,116760.0,116750.0,0.69099396]
[1754762564664,0.20801918,116760.0,116750.0,1.02367543]
[1754762564852,1.07892938,116760.0,116750.0,1.02367543]
[1754762565057,1.08092938,116760.0,116750.0,1.02367543]
[1754762565862,1.08092938,116760.0,116750.0,0.69099396]
[1754762566669,1.08092938,116760.0,116750.0,1.02367543]
[1754762571278,1.08092938,116760.0,116750.0,0.35831249]
[1754762571478,1.08092938,116760.0,116750.0,1.02367543]
[1754762578589,1.08092938,116760.0,116750.0,0.97736695]
[1754762579587,1.08092938,116760.0,116750.0,0.86945044]
[1754762580587,1.08092938,116760.0,116750.0,0.53676897]
[1754762582589,1.08092938,116760.0,116750.0,0.86945044]
[1754762584182,1.08092938,116760.0,116750.0,1.02367543]
[1754762585988,1.08092938,116760.0,116750.0,0.35831249]
[1754762586184,1.09268938,116760.0,116750.0,1.02367543]
[1754762594697,1.09268938,116760.0,116750.0,0.86945044]
[1754762596292,1.09268938,116760.0,116750.0,1.02367543]
[1754762597099,1.00705918,116760.0,116750.0,1.02367543]
[1754762598104,0.80770878,116760.0,116750.0,1.40207718]
[1754762598498,0.80770878,116760.0,116750.0,0.73671424]
[1754762598698,0.80770878,116760.0,116750.0,1.24785219]
[1754762600401,0.80770878,116760.0,116750.0,1.40207718]
[1754762600900,0.80970878,116760.0,116750.0,1.40207718]
[1754762603203,0.3608,116800.0,116780.0,0.02348]
[1754762603400,0.76791921,116820.0,116810.0,0.0855936]
[1754762603600,1.62858188,116820.0,116810.0,0.42686363]
[1754762603799,1.29590041,116820.0,116810.0,0.42686363]
[1754762604100,0.84951021,116820.0,116810.0,0.54515363]
[1754762604399,0.84951021,116820.0,116810.0,1.2386351]
[1754762604591,0.82507021,116820.0,116810.0,1.2386351]
[1754762604993,0.03712021,116820.0,116810.0,1.2386351]
[1754762605305,0.83788021,116820.0,116810.0,1.2396351]
[1754762605501,0.84107021,116820.0,116810.0,1.2396351]
[1754762605805,0.95109681,116820.0,116810.0,1.2396351]
[1754762606006,0.86551021,116820.0,116810.0,1.2396351]
[1754762606404,0.95109681,116820.0,116810.0,1.2396351]
[1754762606704,0.86151021,116820.0,116810.0,1.2396351]
[1754762607206,0.86151021,116820.0,116810.0,1.34701284]
[1754762607806,0.94709691,116820.0,116810.0,1.34701284]
[1754762608005,0.94409691,116820.0,116810.0,1.34701284]
[1754762608707,0.94409691,116820.0,116810.0,0.60614137]
[1754762608908,0.94409691,116820.0,116810.0,0.65353137]
[1754762609206,0.94409691,116820.0,116810.0,0.54615363]
[1754762611906,0.94409691,116820.0,116810.0,0.8788351]
[1754762612299,0.15933691,116820.0,116810.0,0.8788351]
[1754762612504,0.94385691,116820.0,116810.0,0.8788351]
[1754762612704,0.94385691,116820.0,116810.0,0.54615363]
[1754762613502,0.15933691,116820.0,116810.0,0.54615363]
[1754762613806,0.94377691,116820.0,116810.0,0.54615363]
[1754762616913,0.94377691,116820.0,116810.0,0.8788351]
[1754762617108,0.85819021,116820.0,116810.0,1.2396351]
[1754762617709,0.81252021,116820.0,116810.0,1.2396351]
[1754762617914,0.83052021,116820.0,116810.0,1.2396351]
[1754762618114,0.85854021,116820.0,116810.0,1.2396351]
[1754762619815,0.85854021,116820.0,116810.0,0.57427216]
[1754762620016,0.85854021,116820.0,116810.0,1.2396351]
[1754762621317,0.94412691,116820.0,116810.0,1.2396351]
[1754762621516,0.94412691,116820.0,116810.0,0.8788351]
[1754762624118,0.94412691,116820.0,116810.0,1.2396351]
[1754762625218,0.94412691,116820.0,116810.0,0.90695363]
[1754762625421,1.27680838,116820.0,116810.0,0.85956363]
[1754762625716,1.27680838,116820.0,116810.0,0.79815363]
[1754762626121,1.27680838,116820.0,116810.0,0.82314363]
[1754762626517,1.27680838,116820.0,116810.0,0.87756363]
[1754762626720,0.94412691,116820.0,116810.0,0.89230363]
[1754762626917,0.94412691,116820.0,116810.0,0.90743363]
[1754762627719,0.94412691,116820.0,116810.0,1.2401151]
[1754762628020,0.85854021,116820.0,116810.0,1.2401151]
[1754762628920,0.94412721,116820.0,116810.0,1.2401151]
[1754762629115,0.85854021,116820.0,116810.0,0.57475216]
[1754762629310,0.91929721,116820.0,116810.0,1.2401151]
[1754762629513,0.94412721,116820.0,116810.0,1.2401151]
[1754762630817,0.94412721,116820.0,116810.0,0.57475216]
[1754762631023,0.94412721,116820.0,116810.0,0.54663363]
[1754762631824,0.85854021,116820.0,116810.0,0.90743363]
[1754762632923,0.94412721,116820.0,116810.0,0.54663363]
[1754762633817,0.94412721,116820.0,116810.0,0.21395216]
[1754762634017,0.94412721,116820.0,116810.0,0.54663363]
[1754762635017,0.85854021,116820.0,116810.0,0.54663363]
[1754762635213,0.85854021,116820.0,116810.0,0.21395216]
[1754762635525,0.85854021,116820.0,116810.0,0.54663363]
[1754762637725,0.85854021,116820.0,116810.0,0.8793151]
[1754762637726,0.83052021,116820.0,116810.0,0.8793151]
[1754762637925,0.83371021,116820.0,116810.0,0.8793151]
[1754762638418,0.85854021,116820.0,116810.0,0.57475216]
[1754762638621,0.85854021,116820.0,116810.0,1.2401151]
[1754762639427,0.85854021,116820.0,116810.0,0.90743363]
[1754762640026,0.85854021,116820.0,116810.0,0.57475216]
[1754762640227,0.94412731,116820.0,116810.0,0.90743363]
[1754762640530,1.27680878,116820.0,116810.0,0.90743363]
[1754762640730,1.60949025,116820.0,116810.0,0.85978363]
[1754762640931,1.27680878,116820.0,116810.0,0.85978363]
[1754762641133,1.27680878,116820.0,116810.0,0.57475216]
[1754762641334,1.27680878,116820.0,116810.0,0.90743363]
[1754762641733,1.27680878,116820.0,116810.0,0.21395216]
[1754762642032,1.27680878,116820.0,116810.0,0.54663363]
[1754762642232,1.27680878,116820.0,116810.0,0.51705363]
[1754762642824,1.60949025,116820.0,116810.0,0.0865936]
[1754762643025,1.97029025,116820.0,116810.0,0.0865945]
[1754762643221,1.97029025,116820.0,116810.0,0.001]
[1754762643421,1.99185169,116820.0,116810.0,0.001]
[1754762644332,1.97029025,116820.0,116810.0,0.001]
[1754762646834,1.74860475,116820.0,116810.0,0.001]
[1754762647634,1.30492731,116820.0,116810.0,0.001]
[1754762647934,1.74860475,116820.0,116810.0,0.001]
[1754762648228,1.30492731,116820.0,116810.0,0.001]
[1754762648533,1.74860475,116820.0,116810.0,0.001]
[1754762653037,1.91981275,116820.0,116810.0,0.001]
[1754762654135,0.104082,116800.0,116790.0,0.4694648]
[1754762654333,0.913092,116800.0,116790.0,0.4694648]
[1754762655337,0.918092,116800.0,116790.0,0.4694648]
[1754762657237,1.278892,116800.0,116790.0,0.4694648]
[1754762657537,1.278892,116800.0,116780.0,0.55105518]
[1754762657538,0.1288192,116790.0,116780.0,0.48236374]
[1754762657733,0.4896192,116790.0,116780.0,0.374986]
[1754762657938,0.4896192,116790.0,116780.0,0.81866344]
[1754762659134,0.4896192,116790.0,116780.0,0.374986]
[1754762659739,0.4916192,116790.0,116780.0,0.374986]
[1754762660331,0.4916192,116790.0,116780.0,0.48236374]
[1754762660739,0.4926192,116790.0,116780.0,0.48236374]
[1754762661237,0.4926192,116790.0,116780.0,0.49084153]
[1754762662039,0.1318192,116790.0,116780.0,0.49084153]
[1754762662343,0.4926192,116790.0,116780.0,0.40522573]
[1754762663538,0.93629664,116790.0,116780.0,0.10737774]
[1754762663839,0.93629664,116790.0,116780.0,0.1090565]
[1754762664040,0.4926192,116790.0,116780.0,0.1090565]
[1754762664238,0.4926192,116790.0,116780.0,0.1735765]
[1754762664441,0.4926192,116790.0,116780.0,0.2037565]
[1754762665139,0.93629664,116790.0,116780.0,0.2037565]
[1754762665742,0.4926192,116790.0,116780.0,0.2037565]
[1754762665944,0.93629664,116790.0,116780.0,0.2037565]
[1754762666643,0.8254855,116790.0,116780.0,0.2037565]
[1754762667041,0.8254855,116790.0,116780.0,0.5366228]
[1754762668150,0.4926192,116790.0,116780.0,0.2037565]
[1754762668443,0.8254855,116790.0,116780.0,0.64400054]
[1754762668643,0.8254855,116790.0,116780.0,0.5366228]
[1754762669241,0.4926192,116790.0,116780.0,0.5366228]
[1754762669448,0.8254855,116790.0,116780.0,0.5366228]
[1754762670246,0.8254855,116790.0,116780.0,0.2037565]
[1754762670446,0.8254855,116790.0,116780.0,0.5366228]
[1754762671241,0.8254855,116790.0,116780.0,0.2037565]
[1754762671441,0.8254855,116790.0,116780.0,0.5366228]
[1754762673751,0.8254855,116790.0,116780.0,0.2037565]
[1754762673946,0.8254855,116790.0,116780.0,0.5366228]
[1754762674453,0.4926192,116790.0,116780.0,0.5366228]
[1754762674645,0.8254855,116790.0,116780.0,0.5366228]
[1754762676149,0.4926192,116790.0,116780.0,0.5366228]
[1754762676350,0.8254855,116790.0,116780.0,0.64400054]
[1754762678669,0.8254855,116790.0,116780.0,0.5366228]
[1754762679767,0.4646855,116790.0,116780.0,0.5366228]
[1754762680261,0.8254855,116790.0,116780.0,0.5366228]
[1754762681066,0.8254855,116790.0,116780.0,0.64400054]
[1754762681468,0.4698892,116790.0,116780.0,0.64400054]
[1754762681667,0.8027555,116790.0,116780.0,0.64400054]
[1754762682163,0.8257955,116790.0,116780.0,0.64400054]
[1754762682464,0.8257955,116790.0,116780.0,0.2037565]
[1754762682666,0.8257955,116790.0,116780.0,0.5366228]
[1754762683664,0.8257955,116790.0,116780.0,0.64400054]
[1754762684252,0.8257955,116790.0,116780.0,0.5366228]
[1754762685066,0.4929292,116790.0,116780.0,0.5366228]
[1754762685264,0.8257955,116790.0,116780.0,0.5366228]
[1754762688665,0.4649955,116790.0,116780.0,0.5366228]
[1754762688865,0.8257955,116790.0,116780.0,0.5366228]
[1754762689771,0.4929292,116790.0,116780.0,0.5366228]
[1754762689968,0.8257955,116790.0,116780.0,0.5366228]
[1754762692169,0.89337689,116790.0,116780.0,0.11814]
[1754762692371,1.22624319,116790.0,116780.0,0.11814]
[1754762692566,0.56051059,116790.0,116780.0,0.11814]
[1754762692769,1.1586618,116790.0,116780.0,0.11814]
[1754762694375,1.1586618,116790.0,116780.0,0.22551774]
[1754762694577,0.8257955,116790.0,116780.0,0.22551774]
[1754762695573,0.8257955,116790.0,116780.0,0.11814]
[1754762697578,0.89450681,116790.0,116780.0,0.11814]
[1754762698376,0.89450681,116790.0,116780.0,0.2037581]
[1754762698668,0.89450681,116790.0,116780.0,0.11814]
[1754762701481,0.56164051,116790.0,116780.0,0.11814]
[1754762701674,0.89450681,116790.0,116780.0,0.11814]
[1754762705577,0.89450681,116790.0,116780.0,0.22551774]
[1754762707378,0.89450681,116790.0,116780.0,0.11814]
[1754762709586,0.53370681,116790.0,116780.0,0.11814]
[1754762709778,1.25530681,116790.0,116780.0,0.11814]
[1754762711085,0.53370681,116790.0,116780.0,0.11814]
[1754762711286,1.25530681,116790.0,116780.0,0.11814]
[1754762713081,0.53370681,116790.0,116780.0,0.11814]
[1754762713282,1.25530681,116790.0,116780.0,0.11814]
[1754762714991,0.92244051,116790.0,116780.0,0.11814]
[1754762715284,1.25530681,116790.0,116780.0,0.11814]
[1754762720584,1.25530681,116790.0,116780.0,0.22551774]
[1754762721789,1.25530681,116790.0,116780.0,0.11814]
[1754762721985,0.53370681,116790.0,116780.0,0.11814]
[1754762722189,1.25530681,116790.0,116780.0,0.11814]
[1754762723083,0.92244051,116790.0,116780.0,0.11814]
[1754762723289,1.25530681,116790.0,116780.0,0.11814]
[1754762723680,1.25530681,116790.0,116780.0,0.02405]
[1754762723884,0.1535882,116780.0,116770.0,0.11579824]
[1754762724085,1.9646408,116780.0,116770.0,0.10737774]
[1754762724694,0.1535955,116770.0,116760.0,0.6109711]
[1754762724887,0.86442482,116770.0,116760.0,0.6109711]
[1754762725389,0.86442482,116770.0,116760.0,0.71834884]
[1754762725890,0.86442482,116770.0,116760.0,0.74266343]
[1754762727193,0.86442482,116770.0,116760.0,0.40979713]
[1754762727387,0.86442482,116770.0,116760.0,0.63528569]
[1754762727893,0.86542482,116770.0,116760.0,0.63528569]
[1754762728794,0.86542482,116770.0,116760.0,0.63328569]
[1754762729494,0.53255852,116770.0,116760.0,0.63328569]
[1754762729695,0.86542482,116770.0,116760.0,0.63328569]
[1754762729994,0.50462482,116770.0,116760.0,0.63328569]
[1754762730193,0.86542482,116770.0,116760.0,0.63328569]
[1754762733097,0.86542482,116770.0,116760.0,0.30041939]
[1754762733299,0.86542482,116770.0,116760.0,0.63328569]
[1754762734502,0.86542482,116770.0,116760.0,0.74066343]
[1754762736401,0.86542482,116770.0,116760.0,0.40779713]
[1754762736601,0.86542482,116770.0,116760.0,0.74066343]
[1754762737305,0.50462482,116770.0,116760.0,0.74066343]
[1754762737503,0.86542482,116770.0,116760.0,0.40779713]
[1754762737803,0.86542482,116770.0,116760.0,0.74066343]
[1754762738198,0.86542482,116770.0,116760.0,0.40779713]
[1754762738399,0.86542482,116770.0,116760.0,0.74066343]
[1754762739201,0.86542482,116770.0,116760.0,0.40779713]
[1754762739401,0.86542482,116770.0,116760.0,0.74066343]
[1754762740502,0.86542482,116770.0,116760.0,0.32216473]
[1754762740703,0.86542482,116770.0,116760.0,0.65503103]
[1754762742407,0.84222482,116770.0,116760.0,0.32216473]
[1754762742708,0.84222482,116770.0,116760.0,0.65503103]
[1754762742899,0.84222482,116770.0,116760.0,0.32216473]
[1754762743100,0.86576482,116770.0,116760.0,0.65503103]
[1754762743308,0.53289852,116770.0,116760.0,0.32216473]
[1754762743506,0.86576482,116770.0,116760.0,0.65503103]
[1754762744206,0.86576482,116770.0,116760.0,0.54765329]
[1754762744908,0.53289852,116770.0,116760.0,0.54765329]
[1754762745109,0.86576482,116770.0,116760.0,0.54765329]
[1754762748012,0.86576482,116770.0,116760.0,0.21478699]
[1754762748211,0.86576482,116770.0,116760.0,0.54765329]
[1754762748817,0.86576482,116770.0,116760.0,0.21478699]
[1754762749020,0.86576482,116770.0,116760.0,0.54765329]
[1754762749721,0.53289852,116770.0,116760.0,0.54765329]
[1754762749916,0.86576482,116770.0,116760.0,0.54765329]
[1754762750420,0.86576482,116770.0,116760.0,0.21478699]
[1754762750615,0.86576482,116770.0,116760.0,0.54765329]
[1754762751315,0.86576482,116770.0,116760.0,0.12915459]
[1754762751518,0.86576482,116770.0,116760.0,0.1206]
[1754762751721,0.86576482,116770.0,116760.0,0.4534663]
[1754762752013,0.1164328,116760.0,116750.0,0.86392429]
[1754762752221,1.2717191,116760.0,116750.0,0.86392429]
[1754762752517,0.9388528,116760.0,116750.0,0.53105799]
[1754762752714,0.9388528,116760.0,116750.0,0.86392429]
[1754762752913,1.2717191,116760.0,116750.0,0.86392429]
[1754762753320,0.9388528,116760.0,116750.0,0.86392429]
[1754762753513,1.2717191,116760.0,116750.0,0.87246843]
[1754762754019,0.9388528,116760.0,116750.0,0.87246843]
[1754762754420,0.9153128,116760.0,116750.0,0.87246843]
[1754762754613,0.9153128,116760.0,116750.0,0.53960213]
[1754762754813,0.9153128,116760.0,116750.0,0.87246843]
[1754762755017,0.9153128,116760.0,116750.0,0.87446843]
[1754762755417,0.9153128,116760.0,116750.0,0.54160213]
[1754762755618,0.9153128,116760.0,116750.0,0.87446843]
[1754762757315,0.9153128,116760.0,116750.0,0.54160213]
[1754762757521,0.9153128,116760.0,116750.0,0.87446843]
[1754762761726,0.9388528,116760.0,116750.0,0.87446843]
[1754762762825,1.2717191,116760.0,116750.0,0.87446843]
[1754762770033,0.9388528,116760.0,116750.0,0.87446843]
[1754762770334,0.85322,116760.0,116750.0,0.87446843]
[1754762770631,0.85322,116760.0,116750.0,0.54160213]
[1754762770833,0.85322,116760.0,116750.0,0.87446843]
[1754762773941,0.85299,116760.0,116750.0,0.87446843]
[1754762774128,0.82962,116760.0,116750.0,0.87446843]
[1754762774634,0.82962,116760.0,116750.0,0.72024344]
[1754762778736,0.37996302,116770.0,116760.0,0.03185]
[1754762779031,0.05852302,116770.0,116760.0,0.97595744]
[1754762779240,1.28821482,116770.0,116760.0,0.97595744]
[1754762779535,1.28821482,116770.0,116760.0,0.64309114]
[1754762779942,1.28921482,116770.0,116760.0,0.64309114]
[1754762780530,1.20358932,116770.0,116760.0,0.64309114]
[1754762780742,1.20358932,116770.0,116760.0,0.97595744]
[1754762780936,0.82766302,116770.0,116760.0,0.8679854]
[1754762781137,1.20039932,116770.0,116760.0,0.5351191]
[1754762781440,0.87072302,116770.0,116760.0,0.5351191]
[1754762781634,1.20358932,116770.0,116760.0,0.5351191]
[1754762781942,1.20358932,116770.0,116760.0,0.8679854]
[1754762783036,1.20358932,116770.0,116760.0,0.2022528]
[1754762783238,1.20358932,116770.0,116760.0,0.5351191]
[1754762783437,1.20358932,116770.0,116760.0,0.2022528]
[1754762783637,1.20358932,116770.0,116760.0,0.5351191]
[1754762783943,0.87072302,116770.0,116760.0,0.5351191]
[1754762784140,1.20358932,116770.0,116760.0,0.5351191]
[1754762784347,1.20358932,116770.0,116760.0,0.8679854]
[1754762784547,0.87072302,116770.0,116760.0,0.8679854]
[1754762786648,0.87072302,116770.0,116760.0,0.97590761]
[1754762788152,0.87072302,116770.0,116760.0,1.33670761]
[1754762789655,0.08608302,116770.0,116760.0,1.33670761]
[1754762789956,0.87044302,116770.0,116760.0,1.33670761]
[1754762791952,0.87044302,116770.0,116760.0,1.2287854]
[1754762792348,0.87044302,116770.0,116760.0,1.33669352]
[1754762792550,0.95606862,116770.0,116760.0,0.67096092]
[1754762793143,0.95606862,116770.0,116760.0,1.33669352]
[1754762793751,0.95606862,116770.0,116760.0,0.67096092]
[1754762794054,0.95606862,116770.0,116760.0,1.33669352]
[1754762794654,0.87044302,116770.0,116760.0,1.33669352]
[1754762795457,0.87044302,116770.0,116760.0,0.67096092]
[1754762795849,0.87044302,116770.0,116760.0,1.33669352]
[1754762798951,0.95606862,116770.0,116760.0,1.33669352]
[1754762799158,0.95606862,116770.0,116760.0,0.67096092]
[1754762799456,0.95606862,116770.0,116760.0,1.33669352]
[1754762799656,0.95606862,116770.0,116760.0,0.67096092]
[1754762799955,0.95606862,116770.0,116760.0,1.33669352]
[1754762802357,0.95606862,116770.0,116760.0,1.2287854]
[1754762802559,0.95606862,116770.0,116760.0,0.8679854]
[1754762804859,0.87044302,116770.0,116760.0,0.8679854]
[1754762805559,1.20330932,116770.0,116760.0,0.8679854]
[1754762806256,1.28893482,116770.0,116760.0,0.8679854]
[1754762808564,1.20330932,116770.0,116760.0,0.8679854]
[1754762809058,1.28893482,116770.0,116760.0,0.8679854]
[1754762809358,1.64973482,116770.0,116760.0,0.8679854]
[1754762809658,1.31686852,116770.0,116760.0,0.8679854]
[1754762810054,0.95606852,116770.0,116760.0,0.8679854]
[1754762813252,1.31686852,116770.0,116760.0,0.8679854]
[1754762814063,0.95606852,116770.0,116760.0,0.8679854]
[1754762814662,1.31686852,116770.0,116760.0,0.8679854]
[1754762815556,1.64973482,116770.0,116760.0,0.8679854]
[1754762820068,1.28893482,116770.0,116760.0,0.8679854]
[1754762821470,0.87044302,116770.0,116760.0,0.8679854]
[1754762821769,1.20330932,116770.0,116760.0,0.8679854]
[1754762822463,1.64973492,116770.0,116760.0,0.8679854]
[1754762823168,1.28893492,116770.0,116760.0,0.8679854]
[1754762824271,1.28893492,116770.0,116760.0,0.97594091]
[1754762825672,1.64973492,116770.0,116760.0,0.97594091]
[1754762827276,1.64973492,116770.0,116760.0,0.31020831]
[1754762827575,1.64973492,116770.0,116760.0,0.97594091]
[1754762827784,1.28893492,116770.0,116760.0,0.97594091]
[1754762828280,1.64973492,116770.0,116760.0,0.97594091]
[1754762829473,1.31686862,116770.0,116760.0,0.97594091]
[1754762833577,1.31686862,116770.0,116760.0,0.8679854]
[1754762834484,1.64973492,116770.0,116760.0,0.97594091]
[1754762837285,1.28893492,116770.0,116760.0,0.97594091]
[1754762837580,1.31686862,116770.0,116760.0,0.31020831]
[1754762837785,1.31686862,116770.0,116760.0,0.97594091]
[1754762837983,0.95606862,116770.0,116760.0,0.97594091]
[1754762838183,0.87044302,116770.0,116760.0,0.97594091]
[1754762838380,0.87044302,116770.0,116760.0,0.8679854]
[1754762839384,0.87044302,116770.0,116760.0,1.2287854]
[1754762841680,0.80252302,116770.0,116760.0,1.2287854]
[1754762842189,0.81233302,116770.0,116760.0,1.2287854]
[1754762842488,0.84420302,116770.0,116760.0,1.38301039]
[1754762842676,0.80252302,116770.0,116760.0,1.38301039]
[1754762842881,0.84739302,116770.0,116760.0,1.38301039]
[1754762843081,0.87223302,116770.0,116760.0,1.38301039]